fUST/lending_fUST_20240919
["ID","MTS","AMOUNT","RATE_DAILY","PERIOD"]
[338470952,1726675203114,70000.0,0.00014,2]
[338470953,1726675503104,20025.12764323,0.00014,2]
[338470991,1726675832722,-1904.41109103,0.00017668,2]
[338470992,1726675832740,-1150.72085715,0.00017668,2]
[338470996,1726675837755,-1468.61689182,0.00017668,2]
[338470999,1726675837765,-170.889892,0.00017975,2]
[338471000,1726675837774,-500.0,0.00018145,2]
[338471001,1726675837784,-170.889892,0.00018209,2]
[338471003,1726675837794,-170.889892,0.00018443,2]
[338471004,1726675837804,-153.0,0.00018553,2]
[338471005,1726675837813,-500.0,0.00018645,2]
[338471006,1726675837823,-170.889892,0.00018677,2]
[338471007,1726675837832,-300.0,0.00018686,2]
[338471008,1726675837841,-300.0,0.00018686,2]
[338471009,1726675837851,-153.538,0.00018687,2]
[338471010,1726675837860,-608.596,0.00018687,2]
[338471011,1726675837870,-730.04484794,0.00018687,2]
[338471012,1726675837882,-485.95515206,0.00018687,2]
[338471013,1726675837891,-642.64951124,0.000189,5]
[338471014,1726675837900,-150.0,0.000189,2]
[338471015,1726675837910,-6975.30140236,0.00018901,2]
[338471016,1726675837920,-170.889892,0.00018912,2]
[338471017,1726675837929,-40000.0,0.00019,2]
[338471018,1726675837939,-150.0,0.00019029,2]
[338471019,1726675837949,-1000.0,0.00019038,2]
[338471020,1726675837958,-350.0,0.00019089,2]
[338471021,1726675837968,-408.15912559,0.00019089,2]
[338471022,1726675837977,-36133.4066291,0.0001909,3]
[338471023,1726675837986,-52661.8101746,0.0001909,3]
[338471024,1726675837996,-21838.3884396,0.000191,2]
[338471072,1726675839764,-8160.6115604,0.000191,2]
[338471073,1726675839774,-36133.4066291,0.00019129,3]
[338471074,1726675839783,-52661.8101746,0.00019129,3]
[338471075,1726675839793,-943.126488,0.00019145,2]
[338471076,1726675839802,-26533.08345642,0.00019148,5]
[338471077,1726675839811,-151.0,0.00019148,2]
[338471078,1726675839821,-154.506811,0.00019148,2]
[338471079,1726675839830,-151.0,0.00019148,2]
[338471080,1726675839839,-254.424638,0.00019148,2]
[338471081,1726675839849,-151.0,0.00019148,2]
[338471082,1726675839858,-254.424638,0.00019148,2]
[338471083,1726675839867,-151.0,0.00019148,2]
[338471085,1726675839877,-151.0,0.00019148,2]
[338471086,1726675839886,-151.0,0.00019148,2]
[338471087,1726675839896,-151.0,0.00019148,2]
[338471088,1726675839905,-789.190396,0.00019148,2]
[338471089,1726675839914,-789.190396,0.00019148,2]
[338471090,1726675839924,-152.546196,0.00019148,2]
[338471091,1726675839933,-151.0,0.00019148,2]
[338471092,1726675839943,-392.440812,0.00019148,2]
[338471093,1726675839953,-151.0,0.00019148,2]
[338471094,1726675839962,-392.440812,0.00019148,2]
[338471095,1726675839971,-151.0,0.00019148,2]
[338471096,1726675839980,-151.0,0.00019148,2]
[338471097,1726675839989,-151.0,0.00019148,2]
[338471098,1726675839999,-151.0,0.00019148,2]
[338471099,1726675840009,-1536.574627,0.00019148,2]
[338471100,1726675840018,-1536.574627,0.00019148,2]
[338471101,1726675840028,-193.265891,0.00019148,2]
[338471102,1726675840037,-193.265891,0.00019148,2]
[338471103,1726675840046,-151.0,0.00019148,2]
[338471104,1726675840056,-156.29469,0.00019148,2]
[338471105,1726675840065,-151.0,0.00019148,2]
[338471106,1726675840074,-1267.788221,0.00019148,2]
[338471107,1726675840084,-1267.788221,0.00019148,2]
[338471108,1726675840094,-36133.4066291,0.00019148,3]
[338471109,1726675840103,-52661.8101746,0.00019148,3]
[338471110,1726675840113,-235.97121882,0.00019157,2]
[338471111,1726675840122,-440.9526158,0.00019157,2]
[338471112,1726675840132,-500.0,0.00019157,2]
[338471113,1726675840142,-500.0,0.00019157,2]
[338471114,1726675840153,-324.93984816,0.00019157,2]
[338471115,1726675840164,-151.0,0.00019158,2]
[338471116,1726675840173,-151.0,0.00019158,2]
[338471117,1726675840183,-151.0,0.00019158,2]
[338471118,1726675840192,-151.0,0.00019158,2]
[338471119,1726675840202,-254.424638,0.00019158,2]
[338471120,1726675840212,-254.424638,0.00019158,2]
[338471121,1726675840221,-151.0,0.00019158,2]
[338471122,1726675840231,-154.946537,0.00019158,2]
[338471123,1726675840242,-254.424638,0.00019158,2]
[338471124,1726675840252,-254.424638,0.00019158,2]
[338471125,1726675840263,-151.0,0.00019158,2]
[338471126,1726675840273,-151.0,0.00019158,2]
[338471127,1726675840283,-151.0,0.00019158,2]
[338471128,1726675840293,-151.645653,0.00019158,2]
[338471129,1726675840303,-151.0,0.00019158,2]
[338471130,1726675840314,-151.0,0.00019158,2]
[338471131,1726675840323,-5000.0,0.00019158,2]
[338471132,1726675840333,-3618.255437,0.00019158,2]
[338471133,1726675840344,-789.190396,0.00019158,2]
[338471134,1726675840354,-789.190396,0.00019158,2]
[338471135,1726675840364,-789.190396,0.00019158,2]
[338471136,1726675840378,-789.190396,0.00019158,2]
[338471137,1726675840388,-151.0,0.00019158,2]
[338471138,1726675840397,-151.0,0.00019158,2]
[338471139,1726675840407,-392.440812,0.00019158,2]
[338471140,1726675840419,-392.440812,0.00019158,2]
[338471141,1726675840432,-262.515348,0.00019158,2]
[338471142,1726675840644,-392.440812,0.00019158,2]
[338471143,1726675840653,-151.0,0.00019158,2]
[338471144,1726675840662,-151.0,0.00019158,2]
[338471145,1726675840672,-392.440812,0.00019158,2]
[338471146,1726675840682,-151.0,0.00019158,2]
[338471147,1726675840692,-151.0,0.00019158,2]
[338471148,1726675840702,-151.0,0.00019158,2]
[338471149,1726675840713,-151.0,0.00019158,2]
[338471150,1726675840724,-151.0,0.00019158,2]
[338471151,1726675840733,-151.0,0.00019158,2]
[338471152,1726675840743,-151.0,0.00019158,2]
[338471153,1726675840756,-1054.8069427,0.00019158,2]
[338471165,1726675842720,-19192.563,0.00018687,2]
[338471166,1726675842730,-151.0,0.00019148,2]
[338471167,1726675842739,-481.7676843,0.00019158,2]
[338471168,1726675842749,-1536.574627,0.00019158,2]
[338471169,1726675842760,-191.32435028,0.00019158,2]
[338471255,1726677031852,-311.941108,0.00017808,2]
[338471256,1726677031862,-7227.7521528,0.00017841,2]
[338471257,1726677031871,-250.0,0.00017896,2]
[338471258,1726677031881,-907.81286057,0.00018468,2]
[338471259,1726677031890,-300.0,0.00018705,2]
[338471260,1726677031899,-300.0,0.00018705,2]
[338471261,1726677031909,-6975.30140237,0.00018706,2]
[338471262,1726677031921,-970.99696463,0.000189,2]
[338471263,1726677031932,-1879.00303537,0.000189,2]
[338471264,1726677031942,-2900.0,0.0001897,2]
[338471265,1726677031952,-1000.0,0.00019,19]
[338471266,1726677031962,-153.0,0.00019,2]
[338471267,1726677031971,-306.0,0.00019,2]
[338471268,1726677031981,-153.0,0.00019,2]
[338471269,1726677031990,-153.1287431,0.000191,2]
[338471270,1726677031999,-153.0,0.000191,2]
[338471271,1726677032009,-414.2541463,0.00019146,2]
[338471272,1726677032018,-4901.04841844,0.00019147,3]
[338471283,1726677037805,-7502.15537986,0.00019147,3]
[338471290,1726677039863,-21208.9769348,0.00019147,3]
[338471291,1726677039873,-50508.4627631,0.00019147,3]
[338471292,1726677039882,-440.9526158,0.00019147,2]
[338471293,1726677039892,-235.97121882,0.00019147,2]
[338471294,1726677039902,-500.0,0.00019147,2]
[338471295,1726677039911,-500.0,0.00019147,2]
[338471296,1726677039921,-324.93984816,0.00019147,2]
[338471297,1726677039930,-158.66683105,0.00019147,2]
[338471298,1726677039939,-67224.3614661,0.00019148,3]
[338471299,1726677039948,-101016.925526,0.00019148,3]
[338471300,1726677039958,-151.0,0.00019148,2]
[338471301,1726677039967,-1000.0,0.00019148,2]
[338471302,1726677039977,-1000.0,0.00019148,2]
[338471303,1726677039987,-500.0,0.00019148,2]
[338471304,1726677039996,-151.0,0.00019148,2]
[338471305,1726677040005,-299.314941,0.00019148,2]
[338471306,1726677040014,-151.0,0.00019148,2]
[338471307,1726677040024,-151.0,0.00019148,2]
[338471308,1726677040034,-170.908554,0.00019148,2]
[338471309,1726677040048,-522.218121,0.00019148,2]
[338471310,1726677040057,-522.218121,0.00019148,2]
[338471311,1726677040068,-663.052163,0.00019148,2]
[338471312,1726677040077,-663.052163,0.00019148,2]
[338471313,1726677040086,-663.052163,0.00019148,2]
[338471314,1726677040095,-663.052163,0.00019148,2]
[338471315,1726677040104,-522.218121,0.00019148,2]
[338471316,1726677040114,-522.218121,0.00019148,2]
[338471317,1726677040123,-151.0,0.00019148,2]
[338471318,1726677040132,-26533.08345642,0.00019148,5]
[338471319,1726677040141,-1422.78473793,0.00019148,3]
[338471413,1726678232039,-321.338508,0.00017808,2]
[338471415,1726678232049,-194.67476183,0.00018717,2]
[338471416,1726678232058,-150.0,0.000189,2]
[338471417,1726678232067,-598.78737382,0.00019,2]
[338471418,1726678232076,-153.0,0.00019,2]
[338471420,1726678232085,-161.3229466,0.00019,2]
[338471421,1726678232094,-836.4895168,0.00019028,2]
[338471424,1726678232107,-1727.25,0.00019028,2]
[338471426,1726678232118,-57.43455788,0.00019028,2]
[338471428,1726678232127,-300.0,0.00019099,2]
[338471430,1726678232136,-300.0,0.00019099,2]
[338471432,1726678232145,-153.0,0.000191,2]
[338471434,1726678232154,-153.0,0.000191,2]
[338471436,1726678232163,-61.7035103,0.000191,2]
[338471449,1726678239997,-943.126488,0.00018145,2]
[338471450,1726678240008,-91.2964897,0.000191,2]
[338471451,1726678240018,-153.0,0.000191,2]
[338471452,1726678240032,-267.150922,0.000191,2]
[338471453,1726678240042,-153.0,0.000191,2]
[338471454,1726678240053,-34798.6908746,0.00019129,3]
[338471455,1726678240063,-53141.5532718,0.00019129,3]
[338471457,1726678240072,-150.0,0.00019134,2]
[338471458,1726678240082,-34798.6908746,0.00019136,3]
[338471460,1726678240092,-53141.5532718,0.00019136,3]
[338471461,1726678240101,-235.97121882,0.00019136,2]
[338471462,1726678240110,-217.43638636,0.00019136,2]
[338471463,1726678240119,-500.0,0.00019136,2]
[338471464,1726678240128,-500.0,0.00019136,2]
[338471465,1726678240138,-175.02649674,0.00019136,2]
[338471466,1726678240147,-500.0,0.00019136,2]
[338471467,1726678240157,-500.0,0.00019136,2]
[338471469,1726678240358,-229.26192257,0.00019136,2]
[338471470,1726678240368,-500.0,0.00019136,2]
[338471471,1726678240377,-34798.6908746,0.00019137,3]
[338471472,1726678240387,-53141.5532718,0.00019137,3]
[338471473,1726678240395,-14166.97510677,0.00019137,5]
[338471490,1726678242973,-851.6,0.00019137,5]
[338471543,1726678716357,1018.4781352,0.000201,69]
[338471587,1726679432178,-321.65669,0.00017808,2]
[338471588,1726679432189,-150.112233,0.000191,2]
[338471589,1726679432199,-271.08435804,0.00019108,3]
[338471591,1726679437518,10000.0,0.00014013,2]
[338471615,1726679440205,-196.97564196,0.00019108,3]
[338471617,1726679440215,-300.0,0.00019116,2]
[338471619,1726679440225,-300.0,0.00019116,2]
[338471621,1726679440235,-1257.71877154,0.00019117,3]
[338471625,1726679440266,-33665.14355726,0.00019117,3]
[338471627,1726679440275,-34922.8623288,0.00019118,3]
[338471629,1726679440285,-34922.8623288,0.00019118,3]
[338471631,1726679440295,-69845.7246576,0.00019118,3]
[338471633,1726679440304,-34922.8623288,0.00019118,3]
[338471635,1726679440314,-150.0,0.00019124,2]
[338471637,1726679440324,-34922.8623288,0.00019127,3]
[338471638,1726679440335,-26107.28345642,0.00019128,5]
[338471639,1726679440347,-151.0,0.00019128,2]
[338471640,1726679440359,-151.0,0.00019128,2]
[338471641,1726679440368,-151.0,0.00019128,2]
[338471642,1726679440377,-677.551563,0.00019128,2]
[338471643,1726679440386,-677.551563,0.00019128,2]
[338471644,1726679440396,-677.551563,0.00019128,2]
[338471645,1726679440406,-195.260052,0.00019128,2]
[338471646,1726679440416,-195.260052,0.00019128,2]
[338471647,1726679440425,-195.260052,0.00019128,2]
[338471648,1726679440435,-195.260052,0.00019128,2]
[338471649,1726679440444,-195.260052,0.00019128,2]
[338471650,1726679440454,-195.260052,0.00019128,2]
[338471651,1726679440463,-522.218121,0.00019128,2]
[338471653,1726679440474,-522.218121,0.00019128,2]
[338471655,1726679440490,-522.218121,0.00019128,2]
[338471657,1726679440500,-522.218121,0.00019128,2]
[338471659,1726679440511,-522.218121,0.00019128,2]
[338471661,1726679440530,-522.218121,0.00019128,2]
[338471664,1726679440545,-151.0,0.00019128,2]
[338471665,1726679440560,-151.0,0.00019128,2]
[338471667,1726679440577,-172.418104,0.00019128,2]
[338471669,1726679440591,-151.0,0.00019128,2]
[338471672,1726679440601,-151.0,0.00019128,2]
[338471674,1726679440610,-151.645653,0.00019128,2]
[338471675,1726679440619,-1419.570852,0.00019128,2]
[338471677,1726679440629,-1419.570852,0.00019128,2]
[338471680,1726679440640,-1419.570852,0.00019128,2]
[338471682,1726679440651,-722.94995568,0.00019128,2]
[338471739,1726679451687,1147.94,0.00014013,2]
[338472543,1726680757474,157.0,0.00019178,120]
[338472552,1726681007448,-174.68,0.00017804,5]
[338472599,1726681832530,-3290.98143092,0.00017801,5]
[338472616,1726681838519,-7414.56669551,0.00017801,5]
[338472622,1726681842100,-3264.6160792,0.00017801,5]
[338472623,1726681842109,-300.0,0.00017801,2]
[338472624,1726681842119,-300.0,0.00017801,2]
[338472625,1726681842129,-338.563749,0.00017808,2]
[338472626,1726681842139,-3300.9814309,0.00017866,2]
[338472627,1726681842148,-170.698416,0.0001802,2]
[338472628,1726681842157,-170.698416,0.00018176,2]
[338472629,1726681842167,-170.698416,0.00018333,2]
[338472630,1726681842176,-411.5182532,0.00018466,2]
[338472631,1726681842186,-411.5182532,0.00018466,2]
[338472632,1726681842195,-411.5182532,0.00018466,2]
[338472633,1726681842205,-411.5182532,0.00018466,2]
[338472634,1726681842215,-411.5182532,0.00018466,2]
[338472635,1726681842225,-411.5182532,0.00018466,2]
[338472636,1726681842237,-411.5182532,0.00018466,2]
[338472637,1726681842246,-170.698416,0.00018489,2]
[338472638,1726681842256,-411.5182532,0.000185,2]
[338472639,1726681842265,-411.5182532,0.000185,2]
[338472640,1726681842275,-411.5182532,0.000185,2]
[338472641,1726681842285,-411.5182532,0.00018549,2]
[338472642,1726681842295,-170.698416,0.00018646,2]
[338472643,1726681842304,-170.698416,0.00018802,2]
[338472644,1726681842313,-1820.702021,0.000189,2]
[338472645,1726681842323,-170.698416,0.00018959,2]
[338472646,1726681842333,-151.0,0.00019,2]
[338472647,1726681842342,-153.0,0.00019,2]
[338472648,1726681842351,-411.5182532,0.00019,2]
[338472649,1726681842360,-1000.0,0.00019,19]
[338472650,1726681842370,-411.5182532,0.00019,2]
[338472651,1726681842379,-411.5182532,0.00019,2]
[338472652,1726681842389,-411.5182532,0.00019,2]
[338472653,1726681842398,-411.5182532,0.00019,2]
[338472654,1726681842408,-1000.0,0.00019027,2]
[338472655,1726681842417,-978.55158083,0.00019028,2]
[338472656,1726681842427,-978.55158081,0.00019036,2]
[338472657,1726681842436,-978.55158081,0.00019043,2]
[338472658,1726681842445,-1358.39640816,0.00019046,2]
[338472659,1726681842455,-2101.34902288,0.00019048,2]
[338472660,1726681842465,-978.55158081,0.00019051,2]
[338472661,1726681842474,-978.55158081,0.00019058,2]
[338472662,1726681842483,-894.31362004,0.00019083,2]
[338472663,1726681842492,-20053.15693236,0.00019093,2]
[338472664,1726681842501,-150.112233,0.000191,2]
[338472665,1726681842511,-208.705777,0.000191,2]
[338472666,1726681842522,-411.5182532,0.000191,2]
[338472667,1726681842531,-417.232482,0.000191,2]
[338472668,1726681842541,-411.5182532,0.000191,2]
[338472669,1726681842551,-417.3803436,0.000191,2]
[338472670,1726681842560,-154.4189276,0.000191,2]
[338472671,1726681842570,-411.5182532,0.000191,2]
[338472672,1726681842579,-411.5182532,0.000191,2]
[338472673,1726681842589,-411.5182532,0.000191,2]
[338472674,1726681842599,-411.5182532,0.000191,2]
[338472675,1726681842610,-244.2964897,0.000191,2]
[338472676,1726681842620,-411.5182532,0.000191,2]
[338472677,1726681842632,-150.112233,0.000191,2]
[338472678,1726681842643,-150.112233,0.000191,2]
[338472679,1726681842654,-150.112233,0.000191,2]
[338472680,1726681842663,-150.112233,0.000191,2]
[338472681,1726681842674,-150.112233,0.000191,2]
[338472682,1726681842683,-202.83,0.00019107,3]
[338472683,1726681842692,-608.49,0.00019107,3]
[338472684,1726681842702,-500.0,0.00019116,2]
[338472685,1726681842711,-257.22322396,0.00019116,2]
[338472686,1726681842722,-43377.6987517,0.00019117,3]
[338472687,1726681842731,-151.0,0.00019118,2]
[338472688,1726681842750,-224.485677,0.00019118,2]
[338472689,1726681842761,-224.485677,0.00019118,2]
[338472690,1726681842770,-155.461562,0.00019118,2]
[338472691,1726681842780,-151.491314,0.00019118,2]
[338472692,1726681842789,-151.0,0.00019118,2]
[338472693,1726681842798,-151.0,0.00019118,2]
[338472694,1726681842808,-130133.096255,0.00019118,3]
[338472695,1726681842817,-151.0,0.00019125,2]
[338472696,1726681842827,-224.485677,0.00019125,2]
[338472697,1726681842836,-5000.0,0.00019125,2]
[338472698,1726681842847,-3618.255437,0.00019125,2]
[338472699,1726681842857,-224.485677,0.00019125,2]
[338472700,1726681842868,-151.0,0.00019125,2]
[338472701,1726681842877,-151.0,0.00019125,2]
[338472702,1726681842887,-43377.6987517,0.00019125,3]
[338472703,1726681842896,-43377.6987517,0.00019127,3]
[338472704,1726681842906,-151.0,0.00019127,2]
[338472705,1726681842915,-151.0,0.00019127,2]
[338472706,1726681842925,-474.210655,0.00019127,2]
[338472707,1726681842936,-474.210655,0.00019127,2]
[338472708,1726681842945,-365.552684,0.00019127,2]
[338472709,1726681842956,-365.552684,0.00019127,2]
[338472710,1726681842965,-151.0,0.00019127,2]
[338472711,1726681842975,-151.0,0.00019127,2]
[338472712,1726681842992,-254.424638,0.00019127,2]
[338472713,1726681843002,-254.424638,0.00019127,2]
[338472715,1726681843011,-151.0,0.00019127,2]
[338472718,1726681843020,-575.918829,0.00019127,2]
[338472719,1726681843029,-575.918829,0.00019127,2]
[338472722,1726681843038,-998.649332,0.00019127,2]
[338472723,1726681843047,-998.649332,0.00019127,2]
[338472724,1726681843056,-151.0,0.00019127,2]
[338472725,1726681843065,-151.0,0.00019127,2]
[338472727,1726681843075,-1170.487726,0.00019127,2]
[338472728,1726681843084,-151.0,0.00019127,2]
[338472730,1726681843093,-1170.487726,0.00019127,2]
[338472731,1726681843102,-151.0,0.00019127,2]
[338472732,1726681843112,-151.0,0.00019127,2]
[338472733,1726681843121,-151.0,0.00019127,2]
[338472734,1726681843131,-224.485677,0.00019127,2]
[338472735,1726681843141,-224.485677,0.00019127,2]
[338472736,1726681843150,-340.556859,0.00019127,2]
[338472740,1726681843161,-340.556859,0.00019127,2]
[338472744,1726681843171,-152.123845,0.00019127,2]
[338472746,1726681843181,-151.0,0.00019127,2]
[338472749,1726681843191,-151.0,0.00019127,2]
[338472754,1726681843201,-151.0,0.00019127,2]
[338472757,1726681843210,-151.0,0.00019128,2]
[338472761,1726681843219,-151.0,0.00019128,2]
[338472765,1726681843229,-292.651344,0.00019128,2]
[338472768,1726681843242,-1536.574627,0.00019128,2]
[338472770,1726681843251,-1536.574627,0.00019128,2]
[338472772,1726681843261,-1536.574627,0.00019128,2]
[338472774,1726681843272,-1536.574627,0.00019128,2]
[338472776,1726681843282,-151.0,0.00019128,2]
[338472779,1726681843292,-151.0,0.00019128,2]
[338472782,1726681843303,-474.210655,0.00019128,2]
[338472787,1726681843314,-474.210655,0.00019128,2]
[338472790,1726681843324,-474.210655,0.00019128,2]
[338472792,1726681843333,-474.210655,0.00019128,2]
[338472794,1726681843343,-365.552684,0.00019128,2]
[338472796,1726681843353,-365.552684,0.00019128,2]
[338472797,1726681843363,-365.552684,0.00019128,2]
[338472798,1726681843373,-365.552684,0.00019128,2]
[338472799,1726681843383,-151.0,0.00019128,2]
[338472800,1726681843392,-151.0,0.00019128,2]
[338472801,1726681843402,-796.740396,0.00019128,2]
[338472802,1726681843411,-796.740396,0.00019128,2]
[338472803,1726681843421,-796.740396,0.00019128,2]
[338472805,1726681843430,-796.740396,0.00019128,2]
[338472807,1726681843440,-151.0,0.00019128,2]
[338472808,1726681843449,-151.0,0.00019128,2]
[338472809,1726681843459,-392.440812,0.00019128,2]
[338472810,1726681843468,-392.440812,0.00019128,2]
[338472811,1726681843478,-392.440812,0.00019128,2]
[338472812,1726681843491,-392.440812,0.00019128,2]
[338472813,1726681843501,-254.424638,0.00019128,2]
[338472814,1726681843511,-254.424638,0.00019128,2]
[338472815,1726681843521,-254.424638,0.00019128,2]
[338472816,1726681843531,-254.424638,0.00019128,2]
[338472817,1726681843540,-151.0,0.00019128,2]
[338472818,1726681843549,-151.0,0.00019128,2]
[338472819,1726681843559,-575.918829,0.00019128,2]
[338472820,1726681843569,-575.918829,0.00019128,2]
[338472821,1726681843578,-575.918829,0.00019128,2]
[338472822,1726681843588,-575.918829,0.00019128,2]
[338472823,1726681843598,-998.649332,0.00019128,2]
[338472824,1726681843607,-998.649332,0.00019128,2]
[338472825,1726681843617,-998.649332,0.00019128,2]
[338472826,1726681843626,-998.649332,0.00019128,2]
[338472827,1726681843636,-151.0,0.00019128,2]
[338472828,1726681843645,-151.0,0.00019128,2]
[338472829,1726681843655,-151.0,0.00019128,2]
[338472830,1726681843664,-154.946537,0.00019128,2]
[338472832,1726681843674,-1170.487726,0.00019128,2]
[338472834,1726681843684,-1170.487726,0.00019128,2]
[338472836,1726681843694,-151.0,0.00019128,2]
[338472837,1726681843703,-151.0,0.00019128,2]
[338472838,1726681843713,-1170.487726,0.00019128,2]
[338472839,1726681843723,-1170.487726,0.00019128,2]
[338472840,1726681843735,-151.0,0.00019128,2]
[338472841,1726681843745,-151.0,0.00019128,2]
[338472842,1726681843755,-151.0,0.00019128,2]
[338472843,1726681843765,-151.0,0.00019128,2]
[338472844,1726681843774,-340.556859,0.00019128,2]
[338472845,1726681843783,-340.556859,0.00019128,2]
[338472846,1726681843793,-340.556859,0.00019128,2]
[338472847,1726681843802,-340.556859,0.00019128,2]
[338472848,1726681843811,-165.687022,0.00019128,2]
[338472849,1726681843821,-151.0,0.00019128,2]
[338472850,1726681843831,-151.0,0.00019128,2]
[338472851,1726681843839,-151.0,0.00019128,2]
[338472852,1726681843849,-151.0,0.00019132,2]
[338472853,1726681843859,-1011.496981,0.00019132,2]
[338472854,1726681843869,-151.0,0.00019132,2]
[338472855,1726681843879,-1011.496981,0.00019132,2]
[338472856,1726681843888,-274.044758,0.00019132,2]
[338472857,1726681843898,-170.277715,0.00019132,2]
[338472858,1726681843908,-170.277715,0.00019132,2]
[338472859,1726681843917,-151.0,0.00019132,2]
[338472860,1726681843926,-152.115204,0.00019132,2]
[338472861,1726681843937,-1456.840276,0.00019132,2]
[338472862,1726681843946,-1456.840276,0.00019132,2]
[338472863,1726681843956,-1456.840276,0.00019132,2]
[338472864,1726681843965,-1456.840276,0.00019132,2]
[338472865,1726681843975,-151.0,0.00019132,2]
[338472866,1726681843984,-151.0,0.00019132,2]
[338472867,1726681843999,-151.0,0.00019132,2]
[338472868,1726681844008,-151.0,0.00019132,2]
[338472869,1726681844017,-663.052163,0.00019132,2]
[338472870,1726681844026,-663.052163,0.00019132,2]
[338472871,1726681844036,-663.052163,0.00019132,2]
[338472872,1726681844045,-663.052163,0.00019132,2]
[338472873,1726681844054,-151.0,0.00019132,2]
[338472874,1726681844063,-151.0,0.00019132,2]
[338472875,1726681844072,-151.0,0.00019132,2]
[338472876,1726681844082,-151.0,0.00019132,2]
[338472877,1726681844093,-151.0,0.00019132,2]
[338472878,1726681844104,-151.0,0.00019132,2]
[338472879,1726681844114,-1043.142396,0.00019132,2]
[338472880,1726681844124,-1043.142396,0.00019132,2]
[338472881,1726681844135,-1043.142396,0.00019132,2]
[338472882,1726681844145,-1043.142396,0.00019132,2]
[338472883,1726681844156,-365.552684,0.00019132,2]
[338472884,1726681844165,-365.552684,0.00019132,2]
[338472885,1726681844175,-151.0,0.00019132,2]
[338472886,1726681844184,-173.587758,0.00019132,2]
[338472887,1726681844194,-173.587758,0.00019132,2]
[338472888,1726681844204,-173.587758,0.00019132,2]
[338472889,1726681844213,-173.587758,0.00019132,2]
[338472890,1726681844223,-151.0,0.00019132,2]
[338472891,1726681844232,-254.424638,0.00019132,2]
[338472892,1726681844246,-254.424638,0.00019132,2]
[338472893,1726681844255,-151.0,0.00019132,2]
[338472894,1726681844265,-575.918829,0.00019132,2]
[338472895,1726681844274,-575.918829,0.00019132,2]
[338472896,1726681844284,-998.649332,0.00019132,2]
[338472897,1726681844293,-998.649332,0.00019132,2]
[338472898,1726681844303,-151.0,0.00019132,2]
[338472899,1726681844312,-1170.487726,0.00019132,2]
[338472900,1726681844321,-1170.487726,0.00019132,2]
[338472901,1726681844330,-187.631552,0.00019132,2]
[338472902,1726681844340,-151.0,0.00019132,2]
[338472903,1726681844350,-151.0,0.00019132,2]
[338472904,1726681844359,-224.485677,0.00019132,2]
[338472905,1726681844369,-224.485677,0.00019132,2]
[338472906,1726681844379,-224.485677,0.00019132,2]
[338472907,1726681844389,-224.485677,0.00019132,2]
[338472908,1726681844399,-340.556859,0.00019132,2]
[338472909,1726681844408,-340.556859,0.00019132,2]
[338472910,1726681844417,-151.0,0.00019132,2]
[338472911,1726681844427,-299.922293,0.00019132,2]
[338472912,1726681844436,-150.01,0.00019135,2]
[338472913,1726681844446,-12064.83262104,0.00019135,2]
[338472914,1726681844456,-151.0,0.00019135,2]
[338472915,1726681844465,-474.210655,0.00019135,2]
[338472916,1726681844476,-474.210655,0.00019135,2]
[338472917,1726681844489,-210.778268,0.00019136,2]
[338472918,1726681844663,-500.0,0.00019136,2]
[338472919,1726681844674,-375.90037693,0.00019136,2]
[338472920,1726681844685,-545.36828122,0.00019136,2]
[338472921,1726681844696,-155.63165422,0.00019136,2]